fUST/lending_fUST_20260430
["ID","MTS","AMOUNT","RATE_DAILY","PERIOD"]
[421346860,1777481441000,-232.413133,0.00016438,2]
[421346866,1777481441000,-151.0,0.00016438,2]
[421346864,1777481441000,-151.0,0.00016438,2]
[421346854,1777481441000,-232.413133,0.00016438,2]
[421346856,1777481441000,-232.413133,0.00016438,2]
[421346862,1777481441000,-151.0,0.00016438,2]
[421346868,1777481441000,-151.0,0.00016438,2]
[421346753,1777481441000,-2000.0,0.000158,2]
[421346843,1777481441000,-232.413133,0.00016438,2]
[421346814,1777481441000,-155.0,0.0001629,2]
[421346837,1777481441000,-151.0,0.00016438,2]
[421346816,1777481441000,-2398.4119403,0.00016393,2]
[421346810,1777481441000,-4447.88434674,0.00016264,2]
[421346757,1777481441000,-2000.0,0.000158,2]
[421346758,1777481441000,-2312.83697232,0.00015845,2]
[421346755,1777481441000,-2000.0,0.000158,2]
[421346762,1777481441000,-2000.0,0.00015926,2]
[421346756,1777481441000,-2000.0,0.000158,2]
[421346764,1777481441000,-150.0,0.00015996,30]
[421346766,1777481441000,-150.0,0.00016,2]
[421346768,1777481441000,-486.10723341,0.00016019,7]
[421346772,1777481441000,-4374.9651007,0.00016019,7]
[421346779,1777481441000,-400.23088279,0.00016199,2]
[421346770,1777481441000,-1944.42893365,0.00016019,7]
[421346787,1777481441000,-791.0,0.00016261,2]
[421346778,1777481441000,-212.03323276,0.000161,2]
[421346760,1777481441000,-2352.78759078,0.000159,2]
[421346781,1777481441000,-2352.78759078,0.000162,2]
[421346783,1777481441000,-2144.61969555,0.00016223,2]
[421346801,1777481441000,-625.48373626,0.00016264,2]
[421346799,1777481441000,-347.49096459,0.00016264,2]
[421346803,1777481441000,-1111.97108668,0.00016264,2]
[421346797,1777481441000,-7494.85260104,0.00016264,2]
[421346795,1777481441000,-4796.70566466,0.00016264,2]
[421346805,1777481441000,-1737.45482294,0.00016264,2]
[421346791,1777481441000,-1199.17641617,0.00016264,2]
[421346789,1777481441000,-299.79410404,0.00016264,2]
[421346785,1777481441000,-1000.0,0.00016261,2]
[421346774,1777481441000,-5000.0,0.0001606,2]
[421346776,1777481441000,-2352.78759078,0.000161,2]
[421346793,1777481441000,-2698.14693637,0.00016264,2]
[421346944,1777481442000,-15637.0934065,0.0001712,2]
[421346948,1777481442000,-2463.57255887,0.00017131,2]
[421346946,1777481442000,-615.89313972,0.00017131,2]
[421346922,1777481442000,-232.413133,0.0001712,2]
[421346950,1777481442000,-5537.4952192,0.00017131,2]
[421346940,1777481442000,-11745.1946031,0.0001712,2]
[421346942,1777481442000,-13621.64581188,0.0001712,2]
[421346938,1777481442000,-10007.73978016,0.0001712,2]
[421346936,1777481442000,-8409.28134305,0.0001712,2]
[421346934,1777481442000,-151.0,0.0001712,2]
[421346958,1777481442000,-500.0,0.00017173,2]
[421346952,1777481442000,-500.0,0.00017173,2]
[421346956,1777481442000,-500.0,0.00017173,2]
[421346968,1777481442000,-1500.0,0.00017534,2]
[421346960,1777481442000,-500.0,0.00017173,2]
[421346954,1777481442000,-500.0,0.00017173,2]
[421346962,1777481442000,-500.0,0.00017173,2]
[421346964,1777481442000,-5110.35230012,0.0001726,7]
[421346966,1777481442000,-2579.17784983,0.00017489,2]
[421346965,1777481442000,-161.0,0.0001729,2]
[421346967,1777481442000,-6789.34530459,0.00017505,2]
[421346972,1777481442000,-1000.0,0.00017721,2]
[421346976,1777481442000,-1000.0,0.00017721,2]
[421346971,1777481442000,-3500.0,0.00017569,2]
[421346975,1777481442000,-1000.0,0.00017721,2]
[421346973,1777481442000,-1000.0,0.00017721,2]
[421346920,1777481442000,-151.0,0.0001712,2]
[421346963,1777481442000,-536.52452772,0.00017173,2]
[421346930,1777481442000,-151.0,0.0001712,2]
[421346978,1777481442000,-1000.0,0.00017721,2]
[421346926,1777481442000,-232.413133,0.0001712,2]
[421346879,1777481442000,-151.0,0.00016438,2]
[421346881,1777481442000,-151.0,0.00016438,2]
[421346885,1777481442000,-177.9718908,0.00016438,2]
[421346883,1777481442000,-178.002138,0.00016438,2]
[421346887,1777481442000,-2500.0,0.00016474,2]
[421346870,1777481442000,-151.0,0.00016438,2]
[421346872,1777481442000,-151.0,0.00016438,2]
[421346877,1777481442000,-151.0,0.00016438,2]
[421346889,1777481442000,-2209.0,0.00016526,2]
[421346874,1777481442000,-151.0,0.00016438,2]
[421346875,1777481442000,-151.0,0.00016438,2]
[421346891,1777481442000,-1410.0,0.00016526,2]
[421346892,1777481442000,-366.78014518,0.00016606,2]
[421346933,1777481442000,-151.0,0.0001712,2]
[421346897,1777481442000,-7777.71573458,0.00016862,7]
[421346898,1777481442000,-2487.15318209,0.00016941,2]
[421346901,1777481442000,-150.0,0.00016973,30]
[421346905,1777481442000,-1000.0,0.00016986,2]
[421346903,1777481442000,-1000.0,0.00016986,2]
[421346913,1777481442000,-3000.0,0.00017022,2]
[421346914,1777481442000,-1702.85775088,0.00017064,2]
[421346907,1777481442000,-1000.0,0.00016986,2]
[421346911,1777481442000,-1030.156748,0.00017018,2]
[421346909,1777481442000,-212.761919,0.00017018,2]
[421346918,1777481442000,-151.0,0.0001712,2]
[421346917,1777481442000,-156.0,0.00017096,3]
[421346928,1777481442000,-232.413133,0.0001712,2]
[421346924,1777481442000,-232.413133,0.0001712,2]
[421346895,1777481442000,-1465.65346014,0.00016606,2]
[421346969,1777481442000,-1500.0,0.00017534,2]
[421346983,1777481442000,-1000.0,0.00017887,2]
[421346980,1777481442000,-160.0,0.00017766,3]
[421347011,1777481442000,-562.48839518,0.00018816,2]
[421347012,1777481442000,-2000.0,0.00018816,2]
[421347013,1777481442000,-515.82518048,0.00018816,2]
[421347010,1777481442000,-1750.55110491,0.00018816,2]
[421347014,1777481442000,-160.0,0.00018844,4]
[421347017,1777481442000,-645.24152946,0.000189,2]
[421347019,1777481442000,-150.0,0.00018925,30]
[421347021,1777481442000,-8595.0,0.00019,10]
[421347022,1777481442000,-500.0,0.00019,2]
[421347023,1777481442000,-264.98666357,0.00019,60]
[421347025,1777481442000,-2876.18991768,0.00019133,2]
[421347027,1777481442000,-3000.0,0.00019178,2]
[421347026,1777481442000,-300.0,0.00019178,2]
[421347024,1777481442000,-357.91,0.000191,2]
[421347018,1777481442000,-350.0,0.00018904,2]
[421347028,1777481442000,-150.0,0.00019178,2]
[421347030,1777481442000,-369.799858,0.00019237,2]
[421347040,1777481442000,-2500.0,0.00019364,2]
[421347042,1777481442000,-152.714405,0.00019396,2]
[421347029,1777481442000,-5000.0,0.00019213,2]
[421347034,1777481442000,-168.0,0.00019269,2]
[421347038,1777481442000,-1365.84104042,0.00019364,2]
[421347036,1777481442000,-168.0,0.00019311,2]
[421347044,1777481442000,-77104.27560913,0.00019404,2]
[421347031,1777481442000,-474.183,0.00019264,2]
[421347032,1777481442000,-187.2992728,0.00019264,2]
[421346970,1777481442000,-1500.0,0.00017534,2]
[421347009,1777481442000,-2000.0,0.00018816,2]
[421347008,1777481442000,-175.0,0.0001874,3]
[421347020,1777481442000,-7924.93890971,0.00018927,2]
[421347007,1777481442000,-822.0,0.0001872,2]
[421346979,1777481442000,-1000.0,0.00017721,2]
[421346990,1777481442000,-2078.70298775,0.00018082,2]
[421346989,1777481442000,-1301.27289798,0.00018082,2]
[421346984,1777481442000,-2574.1,0.000179,2]
[421346988,1777481442000,-2000.0,0.00018082,2]
[421346987,1777481442000,-2674.60743027,0.00018037,2]
[421347016,1777481442000,-2574.1,0.000189,2]
[421346985,1777481442000,-150.0,0.00017949,30]
[421346981,1777481442000,-150.0,0.00017808,2]
[421347035,1777481442000,-5000.0,0.00019272,2]
[421346986,1777481442000,-1000.0,0.00018,2]
[421346991,1777481442000,-4000.0,0.00018117,2]
[421346993,1777481442000,-7924.93890979,0.00018168,2]
[421346995,1777481442000,-1500.0,0.00018268,2]
[421346982,1777481442000,-1000.0,0.00017887,2]
[421346994,1777481442000,-442.11551006,0.00018199,2]
[421346997,1777481442000,-1500.0,0.00018268,2]
[421346998,1777481442000,-1500.0,0.00018268,2]
[421347002,1777481442000,-601.665458,0.00018493,2]
[421347003,1777481442000,-176.77769396,0.00018538,26]
[421347000,1777481442000,-1500.0,0.00018268,2]
[421347015,1777481442000,-181.8474048,0.0001885,2]
[421346999,1777481442000,-355.09053655,0.00018268,2]
[421347001,1777481442000,-250.0,0.00018356,2]
[421346992,1777481442000,-12140.52815445,0.00018168,7]
[421347005,1777481442000,-2500.0,0.0001863,2]
[421347006,1777481442000,-4500.0,0.00018665,2]
[421347004,1777481442000,-2773.56790519,0.00018585,2]
[421346996,1777481442000,-1500.0,0.00018268,2]
[421347056,1777481443000,-6949.81929178,0.00016264,2]
[421347057,1777481443000,-8518.85309035,0.00019404,2]
[421347055,1777481443000,-9544.0872653,0.00019404,2]
[421347059,1777481443000,-379.285,0.00019404,2]
[421347058,1777481443000,-78174.77187285,0.00019404,2]
[421347081,1777481446000,-756.85469116,0.00019404,2]
[421347080,1777481446000,-2966.37331664,0.00019404,2]
[421347079,1777481446000,-21074.864625,0.00019404,2]
[421347078,1777481446000,-213.93348,0.00015538,7]
[421347077,1777481446000,-470.653656,0.00014798,7]
[421347082,1777481447000,-77405.61229935,0.00019404,2]
[421347102,1777481640000,2002.8503839,0.00021917,120]
[421347107,1777481754000,-209.982136,8.098e-05,2]
[421347104,1777481754000,-531.0,7.859e-05,2]
[421347106,1777481754000,-195.20390069,8.019e-05,2]
[421347103,1777481754000,-2652.18542209,7.859e-05,2]
[421347105,1777481754000,-435.521,7.938e-05,2]
[421347108,1777481754000,-300.0,8.099e-05,2]
[421347110,1777481754000,-156.92586145,8.099e-05,2]
[421347111,1777481754000,-545.17732847,8.099e-05,2]
[421347112,1777481754000,-500.0,8.099e-05,2]
[421347113,1777481754000,-500.0,8.099e-05,2]
[421347114,1777481754000,-434.47224892,8.099e-05,2]
[421347109,1777481754000,-495.6589453,8.099e-05,2]
[421347115,1777481754000,-993043.87315708,8.1e-05,2]
[421347116,1777482062000,-1050.91312664,7.939e-05,2]
[421347127,1777482632000,-504.13057424,7.899e-05,2]
[421347130,1777482632000,-1139.18679864,7.9e-05,2]
[421347126,1777482632000,-226.00401301,7.875e-05,2]
[421347129,1777482632000,-1209.30455931,7.9e-05,2]
[421347128,1777482632000,-500.0,7.899e-05,2]
[421347131,1777482632000,-54177.34445202,7.9e-05,2]
[421347124,1777482632000,-5000.0,7.703e-05,2]
[421347125,1777482632000,-158.0,7.703e-05,2]
[421347206,1777482638000,-32178.29823593,7.9e-05,2]
[421347211,1777482638000,-19507.1685314,8e-05,2]
[421347209,1777482638000,-977322.77208204,8e-05,2]
[421347219,1777482639000,-1538.17840722,8e-05,2]
[421347222,1777482639000,-357.08693218,8e-05,2]
[421347225,1777482639000,-3992.27447946,8e-05,2]
[421347285,1777482641000,-383.015,8e-05,2]
[421347312,1777482647000,-351.92062858,8e-05,2]
[421347311,1777482647000,-494.293216,8e-05,2]
[421347308,1777482647000,-4276.98010339,8e-05,2]
[421347310,1777482647000,-5142.00043291,8e-05,2]
[421347309,1777482647000,-1257.42635663,8e-05,2]
[421347307,1777482647000,-5173.46939032,8e-05,2]
[421347401,1777483831000,-49.86504486,8.178e-05,2]
[421347396,1777483831000,-300.0,8.178e-05,2]
[421347399,1777483831000,-300.0,8.178e-05,2]
[421347386,1777483831000,-1509.90256412,7.434e-05,2]
[421347384,1777483831000,-2051.22528,7.434e-05,2]
[421347388,1777483831000,-228.02393275,7.547e-05,2]
[421347400,1777483831000,-300.0,8.178e-05,2]
[421347406,1777483831000,-300.0,8.178e-05,2]
[421347389,1777483831000,-342.46504488,8.177e-05,2]
[421347402,1777483831000,-250.13495514,8.178e-05,2]
[421347391,1777483831000,-725.53495512,8.177e-05,2]
[421347393,1777483831000,-300.0,8.178e-05,2]
[421347403,1777483831000,-300.0,8.178e-05,2]
[421347405,1777483831000,-300.0,8.178e-05,2]
[421347404,1777483831000,-300.0,8.178e-05,2]
[421347394,1777483831000,-300.0,8.178e-05,2]
[421347429,1777483832000,-152.0,8.308e-05,2]
[421347428,1777483832000,-152.0,8.308e-05,2]
[421347427,1777483832000,-152.0,8.308e-05,2]
[421347423,1777483832000,-152.0,8.308e-05,2]
[421347426,1777483832000,-152.0,8.308e-05,2]
[421347431,1777483832000,-152.0,9.043e-05,2]
[421347430,1777483832000,-4130.2836319,9.043e-05,2]
[421347442,1777483832000,-169.1328075,9.074e-05,2]
[421347443,1777483832000,-246.99500001,9.278e-05,7]
[421347436,1777483832000,-152.0,9.043e-05,2]
[421347432,1777483832000,-152.0,9.043e-05,2]
[421347434,1777483832000,-152.0,9.043e-05,2]
[421347425,1777483832000,-152.0,8.308e-05,2]
[421347441,1777483832000,-152.0,9.043e-05,2]
[421347424,1777483832000,-152.0,8.308e-05,2]
[421347435,1777483832000,-152.0,9.043e-05,2]
[421347420,1777483832000,-152.0,8.293e-05,2]
[421347418,1777483832000,-152.0,8.293e-05,2]
[421347419,1777483832000,-152.0,8.293e-05,2]
[421347421,1777483832000,-152.0,8.293e-05,2]
[421347417,1777483832000,-152.0,8.293e-05,2]
[421347410,1777483832000,-148.68933326,8.178e-05,2]
[421347416,1777483832000,-152.0,8.242e-05,2]
[421347415,1777483832000,-152.0,8.242e-05,2]
[421347411,1777483832000,-300.0,8.178e-05,2]
[421347412,1777483832000,-300.0,8.178e-05,2]
[421347409,1777483832000,-151.31066674,8.178e-05,2]
[421347414,1777483832000,-1020.59729461,8.178e-05,2]
[421347408,1777483832000,-300.0,8.178e-05,2]
[421347413,1777483832000,-300.0,8.178e-05,2]
[421347422,1777483832000,-152.0,8.308e-05,2]
[421347433,1777483832000,-152.0,9.043e-05,2]
[421347452,1777483832000,-185.0,0.00011289,2]
[421347440,1777483832000,-152.0,9.043e-05,2]
[421347472,1777483832000,-10458.55243871,0.00013388,2]
[421347470,1777483832000,-151.0,0.000133,2]
[421347462,1777483832000,-495.59463166,0.00013194,2]
[421347463,1777483832000,-500.0,0.00013194,2]
[421347461,1777483832000,-324.85144215,0.00013194,2]
[421347464,1777483832000,-500.0,0.00013194,2]
[421347460,1777483832000,-500.0,0.00013194,2]
[421347459,1777483832000,-500.0,0.00013194,2]
[421347465,1777483832000,-500.0,0.00013194,2]
[421347466,1777483832000,-500.0,0.00013194,2]
[421347467,1777483832000,-568.78030535,0.00013194,2]
[421347457,1777483832000,-4130.2836319,0.00012962,2]
[421347469,1777483832000,-151.0,0.000133,2]
[421347468,1777483832000,-165.70373006,0.00013253,21]
[421347458,1777483832000,-500.0,0.00013194,2]
[421347437,1777483832000,-152.0,9.043e-05,2]
[421347471,1777483832000,-10002.28797691,0.00013388,2]
[421347454,1777483832000,-199.5,0.00011563,2]
[421347438,1777483832000,-152.0,9.043e-05,2]
[421347439,1777483832000,-152.0,9.043e-05,2]
[421347444,1777483832000,-269.06824065,9.547e-05,2]
[421347449,1777483832000,-646.0,0.00011289,2]
[421347447,1777483832000,-151.5,0.00011015,2]
[421347446,1777483832000,-764.79,0.00010685,2]
[421347451,1777483832000,-378.118,0.00011289,2]
[421347456,1777483832000,-150.0,0.00011617,2]
[421347450,1777483832000,-442.0,0.00011289,2]
[421347453,1777483832000,-310.11254854,0.00011547,2]
[421347455,1777483832000,-150.0,0.00011617,2]
[421347448,1777483832000,-151.5,0.00011289,2]
[421347445,1777483832000,-274.84563953,9.547e-05,2]
[421347498,1777483838000,-202.89140197,0.00013387,2]
[421347500,1777483838000,-1477.8415112,0.00013388,2]
[421347493,1777483838000,-11779.23302051,0.000125,2]
[421347497,1777483838000,-500.0,0.00013387,2]
[421347494,1777483838000,-519.0,0.000125,2]
[421347499,1777483838000,-49825.44207785,0.00013388,2]
[421347496,1777483838000,-340.97558948,0.00013193,2]
[421347505,1777483838000,-2217.50755193,0.00013392,2]
[421347506,1777483838000,-76671.00000002,0.00013392,2]
[421347502,1777483838000,-75449.62475568,0.00013392,2]
[421347501,1777483838000,-128235.87599533,0.00013388,2]
[421347535,1777483840000,-671.77936835,0.00013392,2]
[421347533,1777483840000,-2464.24487033,0.00013392,2]
[421347534,1777483840000,-6423.94677741,0.00013392,2]
[421347532,1777483840000,-703.674,0.00013392,2]
[421347531,1777483840000,-6085.88211101,0.00013392,2]
[421347571,1777483843000,-152.0,9.311e-05,7]
[421347569,1777483843000,-152.0,9.311e-05,7]
[421347570,1777483843000,-152.0,9.311e-05,7]
[421347581,1777483843000,-500.0,0.00013387,2]
[421347582,1777483843000,-911.83098617,0.00013392,2]
[421347578,1777483843000,-152.0,9.311e-05,7]
[421347573,1777483843000,-3349.93678142,0.00013392,2]
[421347737,1777483846000,-152.98640923,0.00013387,2]
[421347729,1777483846000,-152.0,9.311e-05,7]
[421347731,1777483846000,-500.0,0.00013387,2]
[421347734,1777483846000,-347.01359077,0.00013387,2]
[421347732,1777483846000,-500.0,0.00013387,2]
[421347739,1777483846000,-500.0,0.00013387,2]
[421347749,1777483846000,-500.0,0.00013387,2]
[421347741,1777483846000,-263.65766686,0.00013387,2]
[421347750,1777483846000,-136003.29017742,0.00013392,2]
[421347740,1777483846000,-500.0,0.00013387,2]
[421347756,1777483846000,-1756.66719034,0.00013392,2]
[421347747,1777483846000,-500.0,0.00013387,2]
[421347746,1777483846000,-558.42699757,0.00013387,2]
[421347738,1777483846000,-500.0,0.00013387,2]
[421347744,1777483846000,-500.0,0.00013387,2]
[421347743,1777483846000,-500.0,0.00013387,2]
[421347745,1777483846000,-500.0,0.00013387,2]
[421347742,1777483846000,-500.0,0.00013387,2]
[421347757,1777483876000,-300.0,7.599e-05,2]
[421347758,1777484140000,10000.0,0.00021,120]
[421347815,1777484869000,10000.0,0.00021918,120]
[421347855,1777485032000,-86.90383156,7.599e-05,2]
[421347853,1777485032000,-1200.0,7.598e-05,2]
[421347871,1777485032000,-9044.97194499,7.6e-05,2]
[421347870,1777485032000,-214.87983831,7.599e-05,2]
[421347865,1777485032000,-213.09616844,7.599e-05,2]
[421347867,1777485032000,-300.0,7.599e-05,2]
[421347904,1777485038000,-2849.8060003,7.6e-05,2]
[421347903,1777485038000,-503.8814169,7.6e-05,2]
[421347916,1777485040000,-300.0,7.751e-05,2]
[421347908,1777485040000,-8413.97118029,7.6e-05,2]
[421347909,1777485040000,-165.0,7.6e-05,2]
[421347912,1777485040000,-91.37118029,7.751e-05,2]
[421347911,1777485040000,-208.62881971,7.751e-05,2]
[421347910,1777485040000,-300.0,7.751e-05,2]
[421347913,1777485040000,-300.0,7.751e-05,2]
[421347914,1777485040000,-300.0,7.751e-05,2]
[421347915,1777485040000,-300.0,7.751e-05,2]
[421347924,1777485040000,-300.0,7.751e-05,2]
[421347917,1777485040000,-300.0,7.751e-05,2]
[421347925,1777485040000,-300.0,7.751e-05,2]
[421347928,1777485040000,-435.16651232,9.794e-05,2]
[421347927,1777485040000,-500.0,9.794e-05,2]
[421347921,1777485040000,-300.0,7.751e-05,2]
[421347926,1777485040000,-253.55820921,9.599e-05,2]
[421347918,1777485040000,-300.0,7.751e-05,2]
[421347922,1777485040000,-300.0,7.751e-05,2]
[421347920,1777485040000,-300.0,7.751e-05,2]
[421347919,1777485040000,-300.0,7.751e-05,2]
[421347923,1777485040000,-300.0,7.751e-05,2]
[421348062,1777485046000,-500.0,9.794e-05,2]
[421348087,1777485046000,-500.0,9.794e-05,2]
[421348073,1777485046000,-500.0,9.794e-05,2]
[421348069,1777485046000,-385.12333995,9.794e-05,2]
[421348071,1777485046000,-500.0,9.794e-05,2]
[421348066,1777485046000,-114.87666005,9.794e-05,2]
[421348058,1777485046000,-500.0,9.794e-05,2]
[421348060,1777485046000,-292.70063837,9.794e-05,2]
[421348056,1777485046000,-187.18000715,9.794e-05,2]
[421348046,1777485046000,-500.0,9.794e-05,2]
[421348054,1777485046000,-500.0,9.794e-05,2]
[421348050,1777485046000,-500.0,9.794e-05,2]
[421348052,1777485046000,-500.0,9.794e-05,2]
[421348048,1777485046000,-500.0,9.794e-05,2]
[421348040,1777485046000,-168.9517238,9.794e-05,2]
[421348042,1777485046000,-500.0,9.794e-05,2]
[421348038,1777485046000,-64.83348768,9.794e-05,2]
[421348044,1777485046000,-500.0,9.794e-05,2]
[421348064,1777485046000,-456.68306186,9.794e-05,2]
[421348075,1777485046000,-500.0,9.794e-05,2]
[421348085,1777485046000,-500.0,9.794e-05,2]
[421348083,1777485046000,-574.96574568,9.794e-05,2]
[421348081,1777485046000,-500.0,9.794e-05,2]
[421348125,1777485046000,-8951.8903562,9.798e-05,2]
[421348123,1777485046000,-492.02398138,9.797e-05,2]
[421348119,1777485046000,-750.41,9.796e-05,2]
[421348109,1777485046000,-500.0,9.794e-05,2]
[421348115,1777485046000,-500.0,9.794e-05,2]
[421348117,1777485046000,-210.58224155,9.795e-05,2]
[421348106,1777485046000,-207.84718307,9.794e-05,2]
[421348103,1777485046000,-500.0,9.794e-05,2]
[421348113,1777485046000,-500.0,9.794e-05,2]
[421348121,1777485046000,-233.71847048,9.797e-05,2]
[421348101,1777485046000,-500.0,9.794e-05,2]
[421348111,1777485046000,-500.0,9.794e-05,2]
[421348079,1777485046000,-500.0,9.794e-05,2]
[421348077,1777485046000,-500.0,9.794e-05,2]
[421348089,1777485046000,-500.0,9.794e-05,2]
[421348091,1777485046000,-500.0,9.794e-05,2]
[421348093,1777485046000,-500.0,9.794e-05,2]
[421348097,1777485046000,-500.0,9.794e-05,2]
[421348099,1777485046000,-500.0,9.794e-05,2]
[421348095,1777485046000,-500.0,9.794e-05,2]
[421348187,1777485358000,618.1,0.00021917,120]
[421348198,1777485480000,8046.0,0.00021918,120]
[421348280,1777486232000,-300.0,9.179e-05,2]
[421348270,1777486232000,-300.0,9.179e-05,2]
[421348267,1777486232000,-300.0,9.179e-05,2]
[421348272,1777486232000,-300.0,9.179e-05,2]
[421348274,1777486232000,-300.0,9.179e-05,2]
[421348256,1777486232000,-5000.0,8.646e-05,10]
[421348262,1777486232000,-5000.0,9e-05,2]
[421348263,1777486232000,-300.0,9.179e-05,2]
[421348260,1777486232000,-300.0,8.999e-05,2]
[421348258,1777486232000,-221.05951279,8.888e-05,2]
[421348282,1777486232000,-273.92271768,9.179e-05,2]
[421348265,1777486232000,-300.0,9.179e-05,2]
[421348278,1777486232000,-300.0,9.179e-05,2]
[421348315,1777486232000,-5032.69672374,9.585e-05,2]
[421348308,1777486232000,-600.0,9.362e-05,2]
[421348325,1777486232000,-2849.17413928,9.585e-05,2]
[421348322,1777486232000,-806.37418087,9.585e-05,2]
[421348276,1777486232000,-300.0,9.179e-05,2]
[421348290,1777486232000,-300.0,9.179e-05,2]
[421348302,1777486232000,-1952.9984137,9.226e-05,2]
[421348288,1777486232000,-300.0,9.179e-05,2]
[421348318,1777486232000,-6467.271,9.585e-05,2]
[421348305,1777486232000,-429.308,9.226e-05,2]
[421348296,1777486232000,-300.0,9.179e-05,2]
[421348285,1777486232000,-26.07728232,9.179e-05,2]
[421348293,1777486232000,-300.0,9.179e-05,2]
[421348299,1777486232000,-300.0,9.179e-05,2]
[421348312,1777486232000,-233.35958024,9.573e-05,2]
[421348388,1777486239000,-15.78235578,9.179e-05,2]
[421348387,1777486239000,-545.0,8.888e-05,2]
[421348407,1777486240000,-115763.54588238,0.0001,2]
[421348391,1777486240000,-250.93336826,9.179e-05,2]
[421348392,1777486240000,-395.99807364,9.179e-05,2]
[421348404,1777486240000,-9200.1,9.7e-05,2]
[421348395,1777486240000,-559.89922852,9.588e-05,2]
[421348406,1777486240000,-420.0,9.899e-05,2]
[421348396,1777486240000,-486526.46637076,9.591e-05,2]
[421348405,1777486240000,-500.0,9.798e-05,2]
[421348393,1777486240000,-108233.48395611,9.585e-05,2]
[421348399,1777486240000,-559.89922848,9.615e-05,2]
[421348401,1777486240000,-559.89922848,9.67e-05,2]
[421348412,1777486240000,-296.95230518,0.00010889,2]
[421348403,1777486240000,-153.07664,9.698e-05,2]
[421348400,1777486240000,-559.89922848,9.643e-05,2]
[421348408,1777486240000,-155.0,0.00010158,2]
[421348409,1777486240000,-720.0,0.00010298,2]
[421348410,1777486240000,-225.38977988,0.00010415,2]
[421348411,1777486240000,-260.85022509,0.00010888,2]
[421348402,1777486240000,-559.89922848,9.697e-05,2]
[421348531,1777486241000,-160.0,0.00013399,2]
[421348523,1777486241000,-5897.21683464,0.00013333,2]
[421348527,1777486241000,-5314.1245077,0.00013387,2]
[421348521,1777486241000,-592.26031196,0.00013333,2]
[421348514,1777486241000,-3517.14154607,0.000129,2]
[421348534,1777486241000,-151.5,0.00013424,2]
[421348516,1777486241000,-2284.3211517,0.000129,2]
[421348513,1777486241000,-151.0,0.000129,2]
[421348525,1777486241000,-1329.86098791,0.00013387,2]
[421348498,1777486241000,-151.0,0.000123,2]
[421348529,1777486241000,-160.0,0.00013399,2]
[421348519,1777486241000,-1232.82039431,0.000129,2]
[421348541,1777486241000,-500.0,0.00013673,2]
[421348535,1777486241000,-500.0,0.00013673,2]
[421348504,1777486241000,-151.0,0.000125,2]
[421348553,1777486241000,-2118.25,0.00013698,2]
[421348545,1777486241000,-151.0,0.00013698,2]
[421348551,1777486241000,-2118.25,0.00013698,2]
[421348549,1777486241000,-2118.25,0.00013698,2]
[421348555,1777486241000,-2118.25,0.00013698,2]
[421348544,1777486241000,-151.5,0.00013698,2]
[421348548,1777486241000,-151.0,0.00013698,2]
[421348557,1777486241000,-2118.25,0.00013698,2]
[421348559,1777486241000,-2118.25,0.00013698,2]
[421348561,1777486241000,-2118.25,0.00013698,2]
[421348537,1777486241000,-500.0,0.00013673,2]
[421348500,1777486241000,-160.57736547,0.0001246,2]
[421348506,1777486241000,-151.0,0.000127,2]
[421348502,1777486241000,-839.42263453,0.0001246,2]
[421348563,1777486241000,-2118.25,0.00013698,2]
[421348457,1777486241000,-288.971898,0.00010959,2]
[421348448,1777486241000,-290.04769482,0.00010889,2]
[421348459,1777486241000,-5000.0,0.00010959,2]
[421348461,1777486241000,-2577.515403,0.00010959,2]
[421348453,1777486241000,-151.0,0.00010959,2]
[421348451,1777486241000,-250.38489549,0.00010891,2]
[421348465,1777486241000,-151.0,0.000112,2]
[421348467,1777486241000,-864.0,0.00011327,2]
[421348463,1777486241000,-2631.92095654,0.00010969,7]
[421348455,1777486241000,-151.0,0.00010959,2]
[421348469,1777486241000,-151.0,0.000114,2]